bitfinex/quotes_SOLUSD_20250212
["timestamp","ask_amount","ask_price","bid_price","bid_amount"]
[1739383967965,23.5080971,195.21,195.15,10.09624857]
[1739383968165,20.0,195.17,195.12,1.07587806]
[1739383968462,116.2896,195.2,195.03,1.0]
[1739383968679,116.2896,195.2,195.1,10.09624857]
[1739383968977,0.25098,195.16,195.1,10.09624857]
[1739383969479,13.41184853,195.15,195.09,10.09624857]
[1739383969682,3.0747,195.14,195.09,10.09624857]
[1739383970069,3.0747,195.14,195.08,30.09624857]
[1739383970267,44.94530093,195.4,195.16,1.0]
[1739383970579,10.09624857,195.18,195.16,1.0]
[1739383971083,10.09624857,195.17,195.15,1.0]
[1739383971284,0.12549,195.2,195.13,1.0]
[1739383971285,10.09624857,195.16,195.13,1.0]
[1739383971486,10.09624857,195.15,195.13,1.0]
[1739383971661,15.78738929,195.15,195.13,1.0]
[1739383972681,0.25098,195.1,195.05,1.0]
[1739383972984,15.78738929,195.06,195.04,0.063]
[1739383973183,15.78738929,195.05,195.04,2.063]
[1739383973481,15.78738929,195.06,195.05,1.0]
[1739383974079,3.0755,195.09,195.08,1.0]
[1739383974480,3.075,195.12,195.1,2.0]
[1739383974788,3.075,195.12,195.11,1.0]
[1739383975684,3.075,195.12,195.1,1.0]
[1739383975685,15.78738929,195.12,195.1,1.0]
[1739383975867,15.78738929,195.11,195.1,1.0]
[1739383976069,15.78738929,195.11,195.08,1.0]
[1739383976387,15.78738929,195.1,195.08,1.0]
[1739383976769,0.12549,195.12,195.08,1.0]
[1739383976770,15.78738929,195.11,195.08,1.0]
[1739383977791,0.12549,195.12,194.99,1.0]
[1739383977792,0.37647,195.06,194.99,1.0]
[1739383977965,15.91287929,195.01,194.98,0.063]
[1739383978169,15.78738929,195.0,194.98,0.063]
[1739383978370,15.91287929,195.01,194.98,0.063]
[1739383979289,0.12549,195.01,194.99,1.0]
[1739383980285,2.5641,195.0,194.99,1.0]
[1739383980492,2.5641,195.0,194.98,0.063]
[1739383980992,2.5641,195.0,194.99,1.0]
[1739383982476,0.12549,194.98,194.95,0.063]
[1739383982676,0.25098,194.95,194.91,1.0]
[1739383982882,16.03836929,194.95,194.87,2.0]
[1739383983084,16.03836929,194.95,194.88,1.0]
[1739383983693,18.60306929,194.95,194.88,2.0]
[1739383983872,18.60306929,194.95,194.88,1.0]
[1739383984190,18.60306929,194.95,194.89,1.0]
[1739383985796,18.60306929,194.95,194.88,1.0]
[1739383985996,100.90306929,194.95,194.88,2.0]
[1739383986499,100.90306929,194.95,194.88,1.0]
[1739383986680,100.90306929,194.95,194.87,2.0]
[1739383987183,100.90306929,194.95,194.88,1.0]
[1739383987797,32.26589782,194.95,194.94,0.0001]
[1739383988295,13.78831853,194.94,194.93,0.0001]
[1739383988503,29.57570782,194.94,194.93,0.0001]
[1739383989400,32.26599782,194.94,194.93,0.0001]
[1739383995393,2.5659,194.86,194.84,0.063]
[1739383995692,18.35328929,194.86,194.84,0.063]
[1739383999525,29.57570782,194.85,194.84,0.063]
[1739383999692,29.57570782,194.85,194.79,0.063]
[1739383999892,18.47957929,194.8,194.79,0.063]
[1739384000298,18.60506929,194.8,194.79,0.063]
[1739384001016,32.14240782,194.8,194.79,0.063]
[1739384002221,12.8297,194.86,194.81,2.0]
[1739384002222,6.4149,194.86,194.81,2.0]
[1739384002391,22.20228929,194.86,194.82,1.0]
[1739384002592,0.12549,194.85,194.82,1.0]
[1739384002889,15.91287929,194.85,194.82,1.0]
[1739384003391,2.5662,194.84,194.82,1.0]
[1739384003600,2.5662,194.84,194.82,2.0]
[1739384004206,2.5662,194.84,194.82,1.0]
[1739384004405,2.5662,194.84,194.82,2.0]
[1739384004606,2.5662,194.84,194.82,1.0]
[1739384004915,2.5662,194.84,194.82,2.0]
[1739384005120,2.5662,194.84,194.82,1.0]
[1739384005327,2.5662,194.84,194.81,1.0]
[1739384005526,2.5664,194.82,194.81,1.0]
[1739384005727,2.5664,194.82,194.8,1.0]
[1739384006124,0.12549,194.8,194.79,0.063]
[1739384006323,15.91287929,194.8,194.79,0.063]
[1739384006532,29.57570782,194.8,194.79,0.063]
[1739384006905,29.70119782,194.8,194.79,0.063]
[1739384007101,16.16385929,194.79,194.78,0.063]
[1739384007714,18.73065929,194.79,194.78,0.063]
[1739384008016,20.0,194.76,194.74,0.063]
[1739384008204,15.91287929,194.77,194.74,0.063]
[1739384008525,15.78738929,194.77,194.75,1.0]
[1739384009022,0.12549,194.76,194.75,1.0]
[1739384009529,15.78738929,194.78,194.75,1.0]
[1739384009702,2.5663,194.83,194.79,2.0]
[1739384010026,0.12549,194.82,194.79,1.0]
[1739384010405,16.03836929,194.82,194.79,1.0]
[1739384010608,0.25098,194.82,194.79,1.0]
[1739384010822,0.25098,194.82,194.78,1.0]
[1739384010823,2.5666,194.81,194.78,1.0]
[1739384011027,2.5666,194.81,194.78,2.0]
[1739384011229,2.5666,194.81,194.78,1.0]
[1739384012425,2.5666,194.81,194.78,2.0]
[1739384013828,2.5666,194.81,194.79,1.0]
[1739384014131,2.69209,194.81,194.8,1.0]
[1739384014633,2.69209,194.81,194.79,1.0]
[1739384015928,2.69209,194.81,194.78,2.063]
[1739384016128,15.91287929,194.79,194.78,0.063]
[1739384016530,29.57570782,194.79,194.78,0.063]
[1739384016710,112.00119782,194.79,194.78,0.063]
[1739384017617,98.33836929,194.79,194.78,0.063]
[1739384019343,100.90516929,194.79,194.78,0.063]
[1739384020937,84.99229,194.79,194.78,0.063]
[1739384021138,84.99229,194.79,194.78,1.063]
[1739384022947,2.5666,194.81,194.78,2.063]
[1739384023148,2.5666,194.81,194.78,1.063]
[1739384023322,2.5666,194.81,194.78,2.063]
[1739384023521,2.5666,194.81,194.79,1.0]
[1739384024821,16.03836929,194.8,194.78,0.063]
[1739384025022,18.47967929,194.79,194.78,0.063]
[1739384027344,2.5668,194.79,194.78,0.063]
[1739384027724,2.69229,194.79,194.78,0.063]
[1739384028223,22.69229,194.79,194.78,0.063]
[1739384028425,2.5667,194.8,194.78,2.063]
[1739384028631,2.5667,194.8,194.79,1.0]
[1739384030632,2.72209,194.81,194.79,1.0]
[1739384030831,2.72209,194.81,194.78,2.063]
[1739384031043,18.50947929,194.81,194.78,1.063]
[1739384031281,15.78738929,194.8,194.78,0.063]
[1739384031638,2.5668,194.79,194.78,0.063]
[1739384032347,38.47967929,194.79,194.78,0.063]
[1739384032526,22.69229,194.79,194.78,0.063]
[1739384032922,15.81738929,194.81,194.8,2.0]
[1739384032923,0.03,194.81,194.8,2.0]
[1739384033247,0.03,194.81,194.8,17.78738929]
[1739384033635,0.03,194.81,194.8,2.0]
[1739384033834,0.03,194.81,194.8,1.0]
[1739384034332,0.03,194.81,194.79,3.6146]
[1739384034562,0.03,194.81,194.8,1.0]
[1739384034861,0.03,194.81,194.79,3.6146]
[1739384035158,0.03,194.81,194.8,1.0]
[1739384035452,0.03,194.81,194.8,2.0]
[1739384035956,0.03,194.81,194.8,1.0]
[1739384036953,0.03,194.81,194.8,2.0]
[1739384038661,0.03,194.81,194.8,27.33742625]
[1739384038860,0.03,194.81,194.8,2.0]
[1739384039543,0.03,194.81,194.8,1.0]
[1739384040053,0.03,194.81,194.8,2.0]
[1739384040763,0.03,194.81,194.8,27.33742625]
[1739384040965,0.03,194.81,194.8,32.47082625]
[1739384041161,2.5651,194.92,194.88,2.0]
[1739384041539,20.12549,194.91,194.88,2.0]
[1739384041741,0.12549,194.91,194.88,2.0]
[1739384042269,2.69089,194.91,194.87,2.0]
[1739384042848,0.12549,194.87,194.83,1.0]
[1739384043049,0.12549,194.85,194.82,2.0]
[1739384043267,0.12549,194.85,194.82,1.0]
[1739384043485,0.12549,194.85,194.82,2.0]
[1739384043772,0.12549,194.85,194.83,1.0]
[1739384043961,0.12549,194.87,194.82,2.0]
[1739384043962,25.58840625,194.87,194.82,2.0]
[1739384044579,0.12549,194.85,194.82,2.0]
[1739384044779,0.12549,194.85,194.81,1.0]
[1739384044978,25.46291625,194.85,194.81,1.0]
[1739384045286,0.12549,194.85,194.82,2.0]
[1739384046176,2.5662,194.84,194.81,1.0]
[1739384047579,25.58840625,194.84,194.81,1.0]
[1739384047780,13.66282853,194.81,194.78,0.063]
[1739384047987,25.58840625,194.79,194.78,0.063]
[1739384049050,28.15520625,194.79,194.78,0.063]
[1739384050056,2.81778,194.79,194.78,0.063]
[1739384050457,22.81778,194.79,194.78,0.063]
[1739384051357,2.81778,194.79,194.78,0.063]
[1739384051574,2.81778,194.79,194.78,1.063]
[1739384051982,2.5668,194.79,194.78,1.063]
[1739384053476,2.5668,194.79,194.78,2.063]
[1739384053680,6.4152,194.85,194.81,1.0]
[1739384053880,0.25098,194.84,194.81,1.0]
[1739384054600,2.5663,194.83,194.82,1.0]
[1739384054800,2.5663,194.83,194.81,1.0]
[1739384054964,0.12549,194.82,194.79,2.0]
[1739384055164,0.12549,194.82,194.8,1.0]
[1739384055992,2.69189,194.82,194.81,1.0]
[1739384056895,2.69189,194.82,194.79,27.33742625]
[1739384057093,2.5667,194.8,194.78,0.063]
[1739384057393,2.5667,194.8,194.78,1.063]
[1739384058390,0.12549,194.8,194.78,1.063]
[1739384058970,0.12549,194.8,194.78,0.063]
[1739384059305,25.58840625,194.79,194.78,0.063]
[1739384059798,39.25123478,194.79,194.78,0.063]
[1739384060486,41.81803478,194.79,194.78,0.063]
[1739384062893,28.15520625,194.79,194.78,0.063]
[1739384063397,41.81803478,194.79,194.78,0.063]
[1739384063577,16.48060853,194.79,194.78,0.063]
[1739384063783,32.32983693,194.79,194.78,0.063]
[1739384065581,0.12549,194.75,194.74,0.063]
[1739384065788,36.1002084,194.75,194.74,0.063]
[1739384066495,20.25098,194.75,194.74,0.063]
[1739384066707,22.81828,194.75,194.74,0.063]
[1739384067002,2.81828,194.75,194.74,0.063]
[1739384067206,2.81828,194.75,194.74,1.063]
[1739384067510,22.5673,194.75,194.74,1.063]
[1739384068095,22.5673,194.75,194.74,0.063]
[1739384068278,22.5673,194.75,194.74,1.063]
[1739384070708,22.81828,194.75,194.74,0.063]
[1739384070888,22.81828,194.75,194.74,1.063]
[1739384071083,22.81828,194.75,194.74,0.063]
[1739384072016,22.69279,194.75,194.74,0.063]
[1739384072191,22.5673,194.75,194.74,1.063]
[1739384072710,22.5673,194.75,194.74,2.063]
[1739384073010,2.5673,194.75,194.74,2.063]
[1739384073193,2.5673,194.75,194.74,1.063]
[1739384073576,2.5673,194.75,194.74,2.063]
[1739384074017,22.69259,194.77,194.76,1.0]
[1739384074498,22.5671,194.77,194.76,1.0]
[1739384075108,0.03,194.81,194.76,17.8492284]
[1739384075410,2.5667,194.8,194.79,1.0]
[1739384076091,2.72209,194.81,194.8,1.0]
[1739384076607,2.72209,194.81,194.79,1.0]
[1739384077508,20.0,194.8,194.79,1.0]
[1739384077705,22.5667,194.8,194.79,1.0]
[1739384078503,0.12549,194.77,194.76,1.0]
[1739384078818,0.12549,194.76,194.74,1.063]
[1739384079012,15.8492284,194.76,194.74,1.063]
[1739384079400,15.8492284,194.76,194.74,0.063]
[1739384079604,2.5673,194.75,194.74,1.063]
[1739384080409,2.81828,194.75,194.74,0.063]
[1739384080920,32.20484693,194.75,194.74,0.063]
[1739384081615,32.33033693,194.75,194.74,0.063]
[1739384081938,2.5673,194.75,194.74,0.063]
[1739384082117,2.5673,194.75,194.74,1.063]
[1739384083313,2.5673,194.75,194.74,2.063]
[1739384083911,6.4177,194.78,194.77,1.0]
[1739384084340,26.4177,194.78,194.77,1.0]
[1739384085129,28.9846,194.78,194.77,1.0]
[1739384085307,22.0669,194.78,194.77,1.0]
[1739384085632,2.5669,194.78,194.77,1.0]
[1739384085801,2.5669,194.78,194.77,2.0]
[1739384086535,2.5966,194.81,194.8,2.0]
[1739384086832,0.03,194.81,194.8,17.8492284]
[1739384087607,0.03,194.81,194.8,22.9826284]
[1739384087931,2.5654,194.9,194.89,1.0]
[1739384089320,0.03,194.91,194.9,1.0]
[1739384089525,0.03,194.91,194.9,2.0]
[1739384089921,0.03,194.91,194.9,17.8492284]
[1739384091332,0.03,194.91,194.9,38.8292568]
[1739384091540,0.03,194.93,194.92,1.0]
[1739384091712,0.03,194.93,194.92,17.8492284]
[1739384092761,0.03,194.93,194.92,22.9795284]
[1739384096547,0.03,194.93,194.92,24.05652784]
[1739384097349,0.03,194.93,194.92,22.9795284]
[1739384100347,0.03,194.93,194.92,17.8492284]
[1739384100558,0.03,194.93,194.92,2.0]
[1739384101347,0.03,194.93,194.92,17.8492284]
[1739384102637,0.03,194.93,194.92,24.05667242]
[1739384102842,0.03,195.0,194.92,24.30765242]
[1739384103025,0.03,195.0,194.99,17.8492284]
[1739384103937,0.03,195.0,194.99,33.6984568]
[1739384104638,0.03,195.01,195.0,2.0]
[1739384104848,2.5926,195.11,195.1,2.0]
[1739384105259,2.5926,195.11,195.1,17.8492284]
[1739384105452,0.03,195.11,195.1,17.8492284]
[1739384105763,0.03,195.11,195.1,27.2557523]
[1739384106062,0.03,195.11,195.1,2.0]
[1739384106669,0.03,195.11,195.1,1.0]
[1739384107749,0.03,195.11,195.07,1.0]
[1739384107750,25.4112423,195.11,195.07,1.0]
[1739384108333,0.03,195.11,195.1,1.0]
[1739384109243,0.03,195.11,195.1,27.2557523]
[1739384111972,0.03,195.11,195.1,1.0]
[1739384112651,0.03,195.11,195.08,2.0]
[1739384113162,2.5926,195.11,195.08,2.0]
[1739384113366,25.2557523,195.09,195.06,1.0]
[1739384113577,25.2557523,195.08,195.05,1.0]
[1739384113884,25.2557523,195.08,195.01,25.2557523]
[1739384113885,25.2557523,195.08,195.06,1.0]
[1739384114564,25.2557523,195.09,195.06,1.0]
[1739384115044,25.2557523,195.09,195.05,1.0]
[1739384115241,13.78831853,195.1,195.03,1.0]
[1739384115242,0.12549,195.06,195.03,1.0]
[1739384115548,25.2557523,195.07,194.98,1.0]
[1739384115549,0.12549,195.03,194.98,1.0]
[1739384115759,25.2557523,195.0,194.96,2.0]
[1739384115960,25.2557523,194.99,194.96,1.0]
[1739384116263,0.12549,194.99,194.95,1.0]
[1739384116464,0.25098,194.97,194.94,1.0]
[1739384116846,0.25098,194.97,194.96,1.0]
[1739384117059,0.25098,194.97,194.93,1.0]
[1739384117288,2.5646,194.96,194.95,1.0]
[1739384118375,2.5646,194.96,194.93,2.0]
[1739384118684,2.5646,194.96,194.93,1.0]
[1739384120479,2.5646,194.96,194.93,2.0]
[1739384120789,13.66282853,194.95,194.91,2.0]
[1739384121158,13.66282853,194.95,194.91,1.0]
[1739384121353,13.66282853,194.95,194.94,1.0]
[1739384121586,2.5646,194.96,194.95,1.0]
[1739384122580,13.66282853,194.97,194.95,1.0]
[1739384122793,16.22722853,194.97,194.95,1.0]
[1739384123473,13.66282853,194.95,194.91,1.0]
[1739384123665,38.91858083,194.93,194.89,1.0]
[1739384123858,25.2557523,194.9,194.87,1.0]
[1739384124058,0.12549,194.92,194.84,1.0]
[1739384124059,38.91858083,194.89,194.84,1.0]
[1739384124265,25.2557523,194.9,194.87,1.0]
[1739384124492,13.66282853,194.91,194.88,1.0]
[1739384124697,13.66282853,194.91,194.89,1.0]
[1739384124860,2.5654,194.9,194.89,1.0]
[1739384125066,13.66282853,194.89,194.85,1.0]
[1739384125374,38.91858083,194.89,194.84,2.0]
[1739384125572,38.91858083,194.89,194.86,1.0]
[1739384125771,38.91858083,194.89,194.87,1.0]
[1739384126074,38.91858083,194.89,194.84,1.0]
[1739384126387,13.66282853,194.87,194.85,1.0]
[1739384126587,13.66282853,194.87,194.86,1.0]
[1739384126888,13.66282853,194.87,194.83,1.0]
[1739384127064,2.5659,194.86,194.83,1.0]
[1739384127266,2.5659,194.86,194.84,1.0]
[1739384127466,2.5659,194.86,194.83,1.0]
[1739384128475,13.66282853,194.85,194.83,1.0]
[1739384129193,2.5662,194.84,194.83,1.0]
[1739384129401,20.0,194.81,194.8,1.063]
[1739384129569,20.0,194.81,194.8,2.063]
[1739384129990,20.0,194.81,194.8,1.063]
[1739384130193,20.0,194.81,194.8,2.063]
[1739384130386,20.0,194.81,194.8,1.063]
[1739384130896,20.0,194.81,194.8,2.063]
[1739384131287,22.5666,194.81,194.8,2.063]
[1739384131594,2.5666,194.81,194.8,2.063]
[1739384131799,2.5666,194.81,194.8,1.063]
[1739384132298,2.5663,194.83,194.8,1.063]
[1739384132494,20.0,194.81,194.8,0.063]
[1739384132698,33.66282853,194.81,194.8,0.063]
[1739384132898,33.41184853,194.81,194.8,0.063]
[1739384133794,15.97844853,194.81,194.8,0.063]
[1739384134012,15.97844853,194.81,194.8,1.063]
[1739384134495,32.32281975,194.81,194.8,0.063]
[1739384135193,16.48040853,194.81,194.8,0.063]
[1739384136595,16.22942853,194.81,194.8,0.063]
[1739384136900,15.97844853,194.81,194.8,1.063]
[1739384137404,32.32281975,194.81,194.8,0.063]
[1739384138396,32.32281975,194.81,194.8,0.0001]
[1739384140103,48.16523097,194.81,194.8,0.0001]
[1739384141681,32.32281975,194.81,194.8,0.0001]
[1739384143713,16.48040853,194.81,194.8,0.0001]
[1739384145205,15.97844853,194.81,194.8,1.0001]
[1739384146004,15.84241122,194.86,194.82,1.0]
[1739384146212,13.91380853,194.85,194.84,1.0]
[1739384146495,0.25098,194.85,194.84,1.0]
[1739384146701,20.25098,194.85,194.84,1.0]
[1739384146903,49.50523975,194.85,194.84,1.0]
[1739384147227,13.41184853,194.83,194.82,1.0]
[1739384147409,13.66282853,194.83,194.81,1.0]
[1739384147600,13.41184853,194.81,194.8,1.0001]
[1739384148407,22.5662,194.84,194.82,2.0]
[1739384148597,22.5662,194.84,194.83,1.0]
[1739384148990,35.97804853,194.84,194.83,1.0]
[1739384149190,13.41184853,194.83,194.82,1.0]
[1739384149598,15.97814853,194.83,194.82,1.0]
[1739384149785,15.97814853,194.83,194.82,2.0]
[1739384150199,15.97814853,194.83,194.82,1.0]
[1739384150402,15.97814853,194.83,194.82,2.0]
[1739384154703,15.97814853,194.83,194.81,2.0]
[1739384154913,15.97814853,194.83,194.82,1.0]
[1739384155511,2.5663,194.83,194.82,2.0]
[1739384156619,15.97774853,194.86,194.85,1.0]
[1739384158317,15.97774853,194.86,194.84,2.0]
[1739384158501,15.97774853,194.86,194.84,1.0]
[1739384159019,13.41184853,194.84,194.82,2.0]
[1739384159197,13.41184853,194.84,194.83,1.0]
[1739384159396,13.41184853,194.85,194.84,1.0]
[1739384159597,13.41184853,194.85,194.83,2.0]
[1739384159908,13.41184853,194.84,194.82,1.0]
[1739384160102,29.25425975,194.84,194.82,1.0]
[1739384160613,29.25425975,194.84,194.8,0.0001]
[1739384160614,13.41184853,194.81,194.8,0.0001]
[1739384160824,29.25425975,194.81,194.8,0.0001]
[1739384161514,29.75621975,194.81,194.8,0.0001]
[1739384162119,13.41184853,194.81,194.8,1.0001]
[1739384162318,13.41184853,194.81,194.8,2.0001]
[1739384162629,13.41184853,194.81,194.8,1.0001]
[1739384162921,15.97844853,194.81,194.8,1.0001]
[1739384163103,15.97844853,194.81,194.8,2.0001]
[1739384163435,2.566,194.85,194.84,2.0]
[1739384163604,2.566,194.85,194.84,17.84241122]
[1739384163999,15.97764853,194.87,194.84,2.0]
[1739384164409,15.97764853,194.87,194.86,1.0]
[1739384165221,15.97764853,194.87,194.85,1.0]
[1739384165427,15.97764853,194.87,194.84,2.0]
[1739384165629,16.22862853,194.87,194.86,1.0]
[1739384165823,15.97764853,194.87,194.86,2.0]
[1739384166020,15.97764853,194.87,194.86,1.0]
[1739384166225,15.97764853,194.87,194.85,1.0]
[1739384166401,13.41184853,194.85,194.83,1.0]
[1739384166606,29.25425975,194.84,194.82,1.0]
[1739384166807,9.23128,194.87,194.81,1.0]
[1739384166808,13.41184853,194.82,194.81,1.0]
[1739384167013,29.25425975,194.82,194.8,0.0001]
[1739384167226,15.97844853,194.81,194.8,0.0001]
[1739384167427,32.07183975,194.81,194.8,0.0001]
[1739384168536,32.19732975,194.81,194.8,0.0001]
[1739384169334,16.10393853,194.81,194.8,1.0001]
[1739384169543,15.97844853,194.81,194.8,2.0001]
[1739384170333,2.5666,194.81,194.8,2.0001]
[1739384170645,6.4157,194.84,194.83,2.0]
[1739384170646,2.5662,194.84,194.83,2.0]
[1739384171440,16.10333853,194.85,194.83,2.0]
[1739384171637,31.94574975,194.85,194.83,1.0]
[1739384172013,2.566,194.85,194.84,2.0]
[1739384172239,22.566,194.85,194.84,2.0]
[1739384172536,22.566,194.85,194.84,1.0]
[1739384172743,0.25098,194.84,194.82,1.0]
[1739384172929,0.25098,194.84,194.82,2.0]
[1739384173438,13.53733853,194.83,194.82,1.0]
[1739384173639,16.10363853,194.83,194.82,2.0]
[1739384174141,16.10363853,194.83,194.81,2.0]
[1739384174943,16.10363853,194.83,194.82,1.0]
[1739384175123,16.10363853,194.83,194.81,2.0]
[1739384175323,16.10363853,194.83,194.82,1.0]
[1739384175539,16.10363853,194.83,194.81,2.0]
[1739384176448,0.12549,194.82,194.8,1.0001]
[1739384176646,49.63072975,194.81,194.8,0.0001]
[1739384177954,52.32281975,194.81,194.8,0.0001]
[1739384184761,52.35281975,194.81,194.8,0.0001]
[1739384190245,16.38491853,194.81,194.8,0.0001]
[1739384191060,16.38491853,194.81,194.8,1.0001]
[1739384191261,16.25942853,194.81,194.8,2.0001]
[1739384191762,2.5966,194.81,194.8,2.0001]
[1739384192171,0.03,194.81,194.8,2.0001]
[1739384193277,0.03,194.81,194.8,17.84251122]
[1739384193973,0.03,194.81,194.8,2.0001]
[1739384195683,0.03,194.81,194.8,17.84251122]
[1739384196179,0.03,194.81,194.8,2.0001]
[1739384202387,0.03,194.81,194.8,17.84251122]
[1739384204689,0.03,194.81,194.8,2.0001]
[1739384206060,0.03,194.81,194.8,17.84251122]
[1739384209195,0.03,194.81,194.8,22.97591122]
[1739384211772,0.03,194.81,194.8,2.0001]
[1739384215403,0.03,194.81,194.8,17.84251122]
[1739384219705,0.03,194.81,194.8,57.77559855]
[1739384220507,0.03,194.81,194.8,17.26191971]
[1739384221201,0.03,194.81,194.8,12.12851971]
[1739384221698,0.03,194.81,194.8,17.83094632]
[1739384222401,0.03,194.81,194.8,22.96434632]
[1739384228009,0.03,194.81,194.8,17.83094632]
[1739384228907,0.03,194.81,194.8,2.0001]
[1739384229319,49.64916485,194.81,194.8,0.0001]
[1739384229614,49.77465485,194.81,194.8,0.0001]
[1739384230086,52.34125485,194.81,194.8,0.0001]
[1739384235198,68.17210117,194.81,194.8,0.0001]
[1739384235394,52.34125485,194.81,194.8,0.0001]
[1739384238688,68.17210117,194.81,194.8,0.0001]
[1739384239719,52.34125485,194.81,194.8,0.0001]
[1739384240116,68.17210117,194.81,194.8,0.0001]
[1739384240304,0.50196,194.76,194.74,0.063]
[1739384240505,111.91916485,194.75,194.74,0.063]
[1739384240694,111.91916485,194.75,194.74,1.063]
[1739384240894,111.91916485,194.75,194.74,0.063]
[1739384242019,114.48646485,194.75,194.74,0.063]
[1739384242427,98.65561853,194.75,194.74,1.063]
[1739384242619,98.78110853,194.75,194.74,1.063]
[1739384243928,108.9260707,194.75,194.74,0.063]
[1739384244141,26.6260707,194.75,194.74,0.0001]
[1739384244304,13.91380853,194.74,194.73,0.0001]
[1739384244492,24.0587707,194.74,194.73,0.0001]
[1739384245729,32.33928965,194.74,194.73,0.0001]
[1739384247109,20.50196,194.71,194.7,0.0001]
[1739384247311,49.77178965,194.71,194.7,0.0001]
[1739384247909,13.91380853,194.65,194.64,1.0]
[1739384248122,0.25098,194.64,194.63,0.063]
[1739384248433,29.52080965,194.64,194.63,0.063]
[1739384248826,32.08960965,194.64,194.63,0.063]
[1739384249308,32.08960965,194.64,194.61,2.063]
[1739384249309,13.91380853,194.62,194.61,0.063]
[1739384249513,29.77178965,194.62,194.61,0.063]
[1739384250332,29.77178965,194.62,194.61,0.0001]
[1739384250738,32.34088965,194.62,194.61,0.0001]
[1739384253243,48.19887077,194.62,194.61,0.0001]
[1739384253829,32.34088965,194.62,194.61,0.0001]
[1739384254045,20.50196,194.59,194.58,0.063]
[1739384254217,49.77178965,194.59,194.58,0.063]
[1739384254542,49.77178965,194.59,194.58,0.0001]
[1739384255129,13.91380853,194.58,194.57,0.0001]
[1739384255344,32.34138965,194.58,194.57,0.0001]
[1739384259427,32.34138965,194.58,194.57,1.0001]
[1739384259754,16.35791853,194.58,194.57,2.0001]
[1739384261247,32.34138965,194.58,194.57,0.0001]
[1739384262646,16.48340853,194.58,194.57,2.0001]
[1739384262848,2.5696,194.58,194.57,2.0001]
[1739384263027,82.3,194.59,194.58,2.0]
[1739384263228,2.5991,194.62,194.61,1.0]
[1739384263429,2.5991,194.62,194.61,2.0]
[1739384264042,0.03,194.62,194.61,2.0]
[1739384265153,16.38994112,194.62,194.61,2.0]
[1739384265538,13.94380853,194.62,194.61,2.0]
[1739384266445,29.80178965,194.62,194.61,1.0]
[1739384266644,32.37088965,194.62,194.61,2.0]
[1739384266841,16.26192853,194.62,194.61,2.0]
[1739384267344,0.03,194.62,194.61,2.0]
[1739384268249,2.85008,194.62,194.61,2.0]
[1739384270570,2.85008,194.62,194.57,17.49828112]
[1739384270571,20.12549,194.61,194.6,1.0]
[1739384270762,0.12549,194.6,194.59,2.0]
[1739384271067,35.98347112,194.6,194.59,2.0]
[1739384271765,38.55277112,194.6,194.59,2.0]
[1739384272064,22.69479,194.6,194.59,2.0]
[1739384272257,2.5693,194.6,194.59,2.0]
[1739384272458,2.5992,194.62,194.61,2.0]